fUSD/lending_fUSD_20250521
["ID","MTS","AMOUNT","RATE_DAILY","PERIOD"]
[361818874,1747823564071,-497.1,0.00035342,5]
[361818875,1747823564082,-550.16,0.00035342,5]
[361818876,1747823564094,-420.0,0.00035342,5]
[361818877,1747823564105,-420.0,0.00035342,5]
[361818878,1747823564115,-420.0,0.00035342,5]
[361818879,1747823564124,-965.56,0.00035342,5]
[361818880,1747823564135,-616.51,0.00035342,5]
[361818881,1747823564145,-420.0,0.00035342,5]
[361818882,1747823564154,-184.07034704,0.00035342,5]
[361818883,1747823564165,-562.65,0.00035342,5]
[361818884,1747823564175,-611.48,0.00035342,5]
[361818885,1747823564184,-420.0,0.00035342,5]
[361818886,1747823564197,-420.0,0.00035342,5]
[361818887,1747823564207,-363.32410312,0.00035342,5]
[361818888,1747823564217,-420.0,0.00035342,5]
[361818889,1747823564227,-499.33,0.00035342,5]
[361818890,1747823564236,-506.54,0.00035342,5]
[361818891,1747823564246,-911.46,0.00035342,5]
[361818892,1747823564256,-1153.75,0.00035342,5]
[361818893,1747823564266,-420.0,0.00035342,5]
[361818894,1747823564276,-730.43,0.00035342,5]
[361818895,1747823564285,-420.0,0.00035342,5]
[361818896,1747823564295,-420.0,0.00035342,5]
[361818897,1747823564304,-1697.54,0.00035342,5]
[361818898,1747823564314,-579.77,0.00035342,5]
[361818899,1747823564324,-420.0,0.00035342,5]
[361818900,1747823564333,-420.0,0.00035342,5]
[361818901,1747823564343,-570.61,0.00035342,5]
[361818902,1747823564353,-420.0,0.00035342,5]
[361818903,1747823564362,-420.0,0.00035342,5]
[361818904,1747823564372,-788.01,0.00035342,5]
[361818905,1747823564384,-420.0,0.00035342,5]
[361818906,1747823564394,-1490.72,0.00035342,5]
[361818907,1747823564404,-420.0,0.00035342,5]
[361818908,1747823564415,-917.84,0.00035342,5]
[361818909,1747823564424,-642.67,0.00035342,5]
[361818910,1747823564435,-420.0,0.00035342,5]
[361818911,1747823564445,-807.74,0.00035342,5]
[361818912,1747823564454,-901.58,0.00035342,5]
[361818913,1747823564467,-270.24668212,0.00035342,5]
[361818914,1747823564478,-3015.53,0.00035342,5]
[361818915,1747823564488,-420.0,0.00035342,5]
[361818916,1747823564499,-460.17,0.00035342,5]
[361818917,1747823564509,-642.11,0.00035342,5]
[361818918,1747823564518,-420.0,0.00035342,5]
[361818919,1747823564527,-420.0,0.00035342,5]
[361818920,1747823564537,-1185.77,0.00035342,5]
[361818921,1747823564546,-973.19,0.00035342,5]
[361818922,1747823564556,-497.57,0.00035342,5]
[361818923,1747823564565,-420.0,0.00035342,5]
[361818924,1747823564575,-1098.15,0.00035342,5]
[361818925,1747823564585,-420.0,0.00035342,5]
[361818926,1747823564596,-685.16,0.00035342,5]
[361818927,1747823564606,-371.35385609,0.00035342,5]
[361818928,1747823564615,-420.0,0.00035342,5]
[361818929,1747823564625,-448.34,0.00035342,5]
[361818930,1747823564635,-1485.21,0.00035342,5]
[361818931,1747823564645,-818.23,0.00035342,5]
[361818932,1747823564655,-443.81,0.00035342,5]
[361818933,1747823564664,-1526.88,0.00035342,5]
[361818934,1747823564674,-420.0,0.00035342,5]
[361818935,1747823564683,-420.0,0.00035342,5]
[361818936,1747823564693,-470.16,0.00035342,5]
[361818937,1747823564703,-443.58,0.00035342,5]
[361818938,1747823564713,-669.64,0.00035342,5]
[361818939,1747823564722,-420.0,0.00035342,5]
[361818940,1747823564732,-937.45,0.00035342,5]
[361818941,1747823564742,-2266.87,0.00035342,5]
[361818942,1747823564751,-420.0,0.00035342,5]
[361818943,1747823564761,-420.0,0.00035342,5]
[361818944,1747823564770,-420.0,0.00035342,5]
[361818945,1747823564780,-442.68,0.00035342,5]
[361818946,1747823564790,-420.0,0.00035342,5]
[361818947,1747823564800,-655.53,0.00035342,5]
[361818948,1747823564810,-597.09,0.00035342,5]
[361818949,1747823564820,-636.42,0.00035342,5]
[361818950,1747823564830,-420.0,0.00035342,5]
[361818951,1747823564840,-331.96642209,0.00035342,5]
[361818952,1747823564849,-838.78,0.00035342,5]
[361818953,1747823564859,-420.0,0.00035342,5]
[361818954,1747823564868,-493.93,0.00035342,5]
[361818955,1747823564878,-420.0,0.00035342,5]
[361818956,1747823564888,-420.0,0.00035342,5]
[361818957,1747823564898,-560.23,0.00035342,5]
[361818958,1747823564908,-420.0,0.00035342,5]
[361818959,1747823564917,-1078.18,0.00035342,5]
[361818960,1747823564927,-420.0,0.00035342,5]
[361818961,1747823564936,-2322.3,0.00035342,5]
[361818962,1747823564945,-420.0,0.00035342,5]
[361818963,1747823564955,-420.0,0.00035342,5]
[361818964,1747823564964,-1065.69,0.00035342,5]
[361818965,1747823564974,-420.0,0.00035342,5]
[361818966,1747823564984,-1253.93,0.00035342,5]
[361818967,1747823564995,-1274.75,0.00035342,5]
[361818968,1747823565005,-463.91,0.00035342,5]
[361818969,1747823565014,-721.97,0.00035342,5]
[361818970,1747823565024,-420.0,0.00035342,5]
[361818971,1747823565033,-821.62,0.00035342,5]
[361818972,1747823565042,-422.38,0.00035342,5]
[361818973,1747823565052,-420.0,0.00035342,5]
[361818974,1747823565061,-550.85,0.00035342,5]
[361818975,1747823565071,-1544.61,0.00035342,5]
[361818976,1747823565080,-420.0,0.00035342,5]
[361818977,1747823565091,-499.46,0.00035342,5]
[361818978,1747823565100,-351.17028573,0.00035342,5]
[361818979,1747823565110,-678.04,0.00035342,5]
[361818980,1747823565119,-616.6,0.00035342,5]
[361818981,1747823565129,-1170.85,0.00035342,5]
[361818982,1747823565139,-546.75,0.00035342,5]
[361818983,1747823565148,-420.0,0.00035342,5]
[361818984,1747823565157,-420.0,0.00035342,5]
[361818985,1747823565167,-420.0,0.00035342,5]
[361818986,1747823565176,-1581.01,0.00035342,5]
[361818987,1747823565186,-420.0,0.00035342,5]
[361818988,1747823565195,-2020.82,0.00035342,5]
[361818989,1747823565205,-1587.36,0.00035342,5]
[361818990,1747823565215,-440.31,0.00035342,5]
[361818991,1747823565224,-528.73,0.00035342,5]
[361818992,1747823565234,-420.0,0.00035342,5]
[361818993,1747823565243,-530.24,0.00035342,5]
[361818994,1747823565254,-835.65,0.00035342,5]
[361818995,1747823565264,-161.58944015,0.00035342,5]
[361818996,1747823565273,-420.0,0.00035342,5]
[361818997,1747823565283,-632.49,0.00035342,5]
[361818998,1747823565293,-712.53,0.00035342,5]
[361818999,1747823565303,-420.0,0.00035342,5]
[361819000,1747823565313,-420.0,0.00035342,5]
[361819001,1747823565323,-420.0,0.00035342,5]
[361819002,1747823565334,-905.81,0.00035342,5]
[361819003,1747823565344,-1500.35,0.00035342,5]
[361819004,1747823565353,-913.23,0.00035342,5]
[361819005,1747823565362,-891.23,0.00035342,5]
[361819006,1747823565371,-420.0,0.00035342,5]
[361819007,1747823565382,-420.0,0.00035342,5]
[361819008,1747823565393,-420.0,0.00035342,5]
[361819009,1747823565402,-420.0,0.00035342,5]
[361819010,1747823565412,-793.59,0.00035342,5]
[361819011,1747823565424,-420.0,0.00035342,5]
[361819012,1747823565435,-532.78,0.00035342,5]
[361819013,1747823565444,-420.0,0.00035342,5]
[361819014,1747823565454,-420.0,0.00035342,5]
[361819015,1747823565465,-716.67,0.00035342,5]
[361819016,1747823565476,-431.22,0.00035342,5]
[361819017,1747823565486,-3321.89,0.00035342,5]
[361819018,1747823565496,-655.87,0.00035342,5]
[361819019,1747823565506,-420.0,0.00035342,5]
[361819020,1747823565515,-420.0,0.00035342,5]
[361819021,1747823565524,-464.92,0.00035342,5]
[361819022,1747823565533,-752.46,0.00035342,5]
[361819023,1747823565542,-1164.32,0.00035342,5]
[361819024,1747823565551,-420.0,0.00035342,5]
[361819025,1747823565561,-447.46,0.00035342,5]
[361819026,1747823565571,-420.0,0.00035342,5]
[361819027,1747823565580,-1182.51,0.00035342,5]
[361819028,1747823565590,-970.46,0.00035342,5]
[361819029,1747823565599,-2566.8,0.00035342,3]
[361819030,1747823565609,-420.0,0.00035342,5]
[361819031,1747823565619,-986.1,0.00035342,5]
[361819032,1747823565628,-3544.76,0.00035342,5]
[361819033,1747823565637,-528.46,0.00035342,5]
[361819034,1747823565646,-420.0,0.00035342,5]
[361819035,1747823565656,-420.0,0.00035342,5]
[361819036,1747823565665,-1116.24,0.00035342,5]
[361819037,1747823565675,-607.2,0.00035342,5]
[361819038,1747823565685,-498.41,0.00035342,5]
[361819039,1747823565694,-511.54,0.00035342,5]
[361819040,1747823565703,-420.0,0.00035342,5]
[361819041,1747823565713,-1446.26,0.00035342,5]
[361819042,1747823565723,-635.53,0.00035342,5]
[361819043,1747823565733,-420.0,0.00035342,5]
[361819044,1747823565743,-420.0,0.00035342,5]
[361819045,1747823565753,-377.8068224,0.00035342,5]
[361819046,1747823565763,-420.0,0.00035342,5]
[361819047,1747823565772,-602.05,0.00035342,5]
[361819048,1747823565936,-420.0,0.00035342,5]
[361819049,1747823565946,-3171.93,0.00035342,5]
[361819050,1747823565956,-360.0,0.00035342,5]
[361819051,1747823565966,-672.06,0.00035342,5]
[361819052,1747823565976,-1136.92,0.00035342,5]
[361819053,1747823565986,-501.87,0.00035342,5]
[361819054,1747823565996,-420.0,0.00035342,5]
[361819055,1747823566005,-960.17,0.00035342,5]
[361819056,1747823566016,-496.6198841,0.00035342,5]
[361819057,1747823566025,-1498.01,0.00035342,5]
[361819058,1747823566036,-420.0,0.00035342,5]
[361819059,1747823566045,-420.0,0.00035342,5]
[361819060,1747823566054,-489.93,0.00035342,5]
[361819061,1747823566063,-420.0,0.00035342,5]
[361819062,1747823566073,-420.0,0.00035342,5]
[361819063,1747823566082,-420.0,0.00035342,5]
[361819064,1747823566092,-1181.55,0.00035342,5]
[361819065,1747823566101,-420.0,0.00035342,5]
[361819066,1747823566111,-1634.56,0.00035342,5]
[361819067,1747823566120,-420.0,0.00035342,5]
[361819068,1747823566130,-731.06,0.00035342,5]
[361819069,1747823566139,-665.75,0.00035342,5]
[361819070,1747823566148,-420.0,0.00035342,5]
[361819071,1747823566158,-1010.87,0.00035342,5]
[361819072,1747823566168,-725.49,0.00035342,5]
[361819073,1747823566177,-1218.91,0.00035342,5]
[361819074,1747823566188,-1168.31,0.00035342,5]
[361819075,1747823566198,-1264.38,0.00035342,5]
[361819076,1747823566208,-420.0,0.00035342,5]
[361819077,1747823566218,-420.0,0.00035342,2]
[361819078,1747823566227,-584.07,0.00035342,5]
[361819079,1747823566237,-3033.08,0.00035342,5]
[361819080,1747823566247,-420.0,0.00035342,5]
[361819081,1747823566256,-420.0,0.00035342,5]
[361819082,1747823566266,-740.34,0.00035342,5]
[361819083,1747823566275,-420.0,0.00035342,5]
[361819084,1747823566285,-420.0,0.00035342,5]
[361819085,1747823566294,-420.0,0.00035342,5]
[361819086,1747823566304,-1236.73,0.00035342,5]
[361819087,1747823566314,-420.0,0.00035342,5]
[361819088,1747823566323,-718.57,0.00035342,5]
[361819089,1747823566332,-420.0,0.00035342,2]
[361819090,1747823566343,-2646.97,0.00035342,5]
[361819091,1747823566352,-420.0,0.00035342,5]
[361819092,1747823566361,-420.0,0.00035342,5]
[361819093,1747823566372,-3655.51,0.00035342,5]
[361819094,1747823566383,-420.0,0.00035342,5]
[361819095,1747823566393,-1194.67,0.00035342,5]
[361819096,1747823566402,-637.39,0.00035342,5]
[361819097,1747823566412,-2368.39,0.00035342,5]
[361819098,1747823566422,-932.97,0.00035342,5]
[361819099,1747823566431,-788.04,0.00035342,5]
[361819100,1747823566441,-475.79,0.00035342,5]
[361819101,1747823566451,-469.81,0.00035342,5]
[361819102,1747823566462,-420.0,0.00035342,5]
[361819103,1747823566473,-1192.06,0.00035342,5]
[361819104,1747823566483,-1158.88,0.00035342,5]
[361819105,1747823566492,-2693.72,0.00035342,5]
[361819106,1747823566502,-2741.78,0.00035342,5]
[361819107,1747823566513,-1351.52,0.00035342,5]
[361819108,1747823566523,-420.0,0.00035342,5]
[361819109,1747823566533,-1167.31,0.00035342,5]
[361819110,1747823566543,-420.0,0.00035342,5]
[361819111,1747823566554,-506.87,0.00035342,5]
[361819112,1747823566564,-1450.92,0.00035342,5]
[361819113,1747823566574,-664.46,0.00035342,5]
[361819114,1747823566583,-2096.4,0.00035342,5]
[361819115,1747823566593,-783.68,0.00035342,5]
[361819116,1747823566603,-1675.88,0.00035342,5]
[361819117,1747823566613,-421.11,0.00035342,5]
[361819118,1747823566623,-420.0,0.00035342,5]
[361819119,1747823566632,-655.43,0.00035342,5]
[361819120,1747823566642,-1330.16,0.00035342,5]
[361819121,1747823566652,-420.0,0.00035342,5]
[361819122,1747823566662,-628.75,0.00035342,5]
[361819123,1747823566672,-470.23,0.00035342,5]
[361819124,1747823566682,-789.43,0.00035342,5]
[361819125,1747823566692,-2066.32,0.00035342,5]
[361819126,1747823566703,-543.38,0.00035342,5]
[361819127,1747823566714,-1884.88,0.00035342,5]
[361819128,1747823566725,-420.0,0.00035342,5]
[361819129,1747823566736,-443.39,0.00035342,5]
[361819130,1747823566746,-814.52,0.00035342,5]
[361819131,1747823566758,-420.0,0.00035342,5]
[361819132,1747823566768,-468.75,0.00035342,5]
[361819133,1747823566779,-2280.59,0.00035342,5]
[361819134,1747823566789,-420.0,0.00035342,5]
[361819135,1747823566801,-420.0,0.00035342,5]
[361819136,1747823566812,-420.0,0.00035342,5]
[361819137,1747823566822,-1660.08,0.00035342,5]
[361819138,1747823566833,-334.68774161,0.00035342,5]
[361819139,1747823566843,-891.37,0.00035342,5]
[361819140,1747823566854,-420.0,0.00035342,5]
[361819141,1747823566864,-2531.44,0.00035342,5]
[361819142,1747823566875,-1229.28,0.00035342,5]
[361819143,1747823566885,-420.0,0.00035342,5]
[361819144,1747823566896,-562.73,0.00035342,5]
[361819145,1747823566906,-420.0,0.00035342,5]
[361819146,1747823566917,-420.0,0.00035342,5]
[361819147,1747823566927,-420.0,0.00035342,5]
[361819148,1747823566938,-639.64,0.00035342,5]
[361819149,1747823566949,-1520.14,0.00035342,5]
[361819150,1747823566959,-2002.78,0.00035342,5]
[361819151,1747823566970,-504.03,0.00035342,5]
[361819152,1747823566980,-420.0,0.00035342,5]
[361819153,1747823566991,-420.0,0.00035342,5]
[361819154,1747823567001,-756.35,0.00035342,5]
[361819155,1747823567012,-1155.6,0.00035342,5]
[361819156,1747823567023,-420.0,0.00035342,5]
[361819157,1747823567034,-420.0,0.00035342,5]
[361819158,1747823567044,-2487.3,0.00035342,5]
[361819159,1747823567055,-829.63,0.00035342,5]
[361819160,1747823567067,-440.4,0.00035342,5]
[361819161,1747823567077,-420.0,0.00035342,5]
[361819162,1747823567088,-420.0,0.00035342,5]
[361819163,1747823567098,-1069.06,0.00035342,5]
[361819164,1747823567109,-512.22,0.00035342,5]
[361819165,1747823567119,-1131.24,0.00035342,5]
[361819166,1747823567130,-3548.27,0.00035342,5]
[361819167,1747823567140,-440.20804466,0.00035342,5]
[361819168,1747823567151,-531.37,0.00035342,5]
[361819169,1747823567163,-420.0,0.00035342,5]
[361819170,1747823567173,-438.38,0.00035342,5]
[361819171,1747823567184,-420.0,0.00035342,5]
[361819172,1747823567194,-1167.92,0.00035342,5]
[361819173,1747823567204,-836.66,0.00035342,5]
[361819174,1747823567215,-1758.59,0.00035342,5]
[361819175,1747823567225,-2244.73,0.00035342,5]
[361819176,1747823567235,-500.0,0.00035342,5]
[361819177,1747823567246,-1671.68,0.00035342,5]
[361819178,1747823567257,-706.99,0.00035342,5]
[361819179,1747823567267,-1303.3,0.00035342,5]
[361819180,1747823567278,-630.7,0.00035342,5]
[361819181,1747823567289,-1546.03,0.00035342,5]
[361819182,1747823567300,-1449.1,0.00035342,5]
[361819183,1747823567311,-1084.11,0.00035342,5]
[361819184,1747823567322,-796.16,0.00035342,5]
[361819185,1747823567333,-829.47,0.00035342,5]
[361819186,1747823567344,-420.0,0.00035342,5]
[361819187,1747823567355,-560.22,0.00035342,5]
[361819188,1747823567366,-677.92,0.00035342,5]
[361819189,1747823567378,-2061.87,0.00035342,5]
[361819190,1747823567391,-1759.24,0.00035342,5]
[361819191,1747823567403,-420.0,0.00035342,5]
[361819192,1747823567414,-2008.9,0.00035342,5]
[361819193,1747823567425,-420.0,0.00035342,5]
[361819194,1747823567436,-603.25,0.00035342,5]
[361819195,1747823567447,-420.0,0.00035342,5]
[361819196,1747823567459,-3335.62,0.00035342,5]
[361819197,1747823567472,-794.93,0.00035342,5]
[361819198,1747823567484,-462.11,0.00035342,5]
[361819199,1747823567496,-1384.78,0.00035342,5]
[361819200,1747823567507,-3088.45,0.00035342,5]
[361819201,1747823567519,-3415.98,0.00035342,5]
[361819202,1747823567531,-420.0,0.00035342,5]
[361819203,1747823567543,-420.0,0.00035342,5]
[361819204,1747823567554,-475.97,0.00035342,5]
[361819205,1747823567566,-420.0,0.00035342,5]
[361819206,1747823567578,-1441.04,0.00035342,5]
[361819207,1747823567589,-1360.17,0.00035342,5]
[361819208,1747823567603,-799.95,0.00035342,5]
[361819209,1747823567614,-420.0,0.00035342,5]
[361819210,1747823567626,-1022.16,0.00035342,5]
[361819211,1747823567637,-2905.57,0.00035342,5]
[361819212,1747823567648,-420.0,0.00035342,5]
[361819213,1747823567660,-347.57241204,0.00035342,5]
[361819214,1747823567671,-2154.53,0.00035342,5]
[361819215,1747823567683,-420.0,0.00035342,5]
[361819216,1747823567694,-1412.77,0.00035342,5]
[361819217,1747823567706,-1804.92,0.00035342,5]
[361819218,1747823567718,-931.82,0.00035342,5]
[361819219,1747823567729,-3820.81,0.00035342,5]
[361819220,1747823567741,-420.0,0.00035342,5]
[361819221,1747823567753,-420.0,0.00035342,5]
[361819222,1747823567765,-420.0,0.00035342,5]
[361819223,1747823567777,-446.52,0.00035342,5]
[361819224,1747823567789,-3379.22,0.00035342,5]
[361819225,1747823567801,-552.29,0.00035342,5]
[361819226,1747823567812,-2204.62,0.00035342,5]
[361819227,1747823567823,-1365.61,0.00035342,5]
[361819228,1747823567835,-739.98,0.00035342,5]
[361819229,1747823567847,-1686.16,0.00035342,5]
[361819230,1747823567858,-638.15,0.00035342,5]
[361819231,1747823567869,-2851.0,0.00035342,5]
[361819232,1747823567881,-420.0,0.00035342,5]
[361819233,1747823567893,-641.93,0.00035342,5]
[361819234,1747823567924,-669.03,0.00035342,5]
[361819235,1747823567942,-1513.514558,0.00035342,5]
[361819236,1747823567967,-1056.24,0.00035342,5]
[361819237,1747823567989,-605.2,0.00035342,5]
[361819238,1747823568010,-420.0,0.00035342,5]
[361819239,1747823568033,-3414.72,0.00035342,5]
[361819240,1747823568055,-420.0,0.00035342,5]
[361819241,1747823568079,-456.44,0.00035342,5]
[361819242,1747823568101,-174.47,0.00035342,5]
[361819243,1747823568123,-2738.58,0.00035342,5]
[361819244,1747823568145,-626.72,0.00035342,5]
[361819245,1747823568162,-1961.22,0.00035342,5]
[361819246,1747823568183,-4019.16,0.00035342,5]
[361819247,1747823568200,-420.0,0.00035342,5]
[361819248,1747823568220,-420.0,0.00035342,5]
[361819249,1747823568239,-420.0,0.00035342,5]
[361819250,1747823568258,-501.19,0.00035342,5]
[361819251,1747823568279,-437.02,0.00035342,5]
[361819252,1747823568298,-420.0,0.00035342,5]
[361819253,1747823568315,-3829.73,0.00035342,5]
[361819254,1747823568333,-1195.86,0.00035342,5]
[361819255,1747823568353,-1171.35,0.00035342,5]
[361819256,1747823568371,-1602.68,0.00035342,5]
[361819257,1747823568392,-1595.56,0.00035342,5]
[361819258,1747823568410,-1403.63,0.00035342,5]
[361819259,1747823568427,-420.0,0.00035342,5]
[361819260,1747823568445,-2127.07,0.00035342,5]
[361819261,1747823568463,-1620.22,0.00035342,5]
[361819262,1747823568481,-975.42,0.00035342,5]
[361819263,1747823568500,-420.0,0.00035342,5]
[361819264,1747823568519,-663.27,0.00035342,5]
[361819265,1747823568537,-1651.18,0.00035342,5]
[361819266,1747823568555,-4718.07,0.00035342,5]
[361819267,1747823568574,-560.95,0.00035342,5]
[361819268,1747823568592,-701.41,0.00035342,5]
[361819269,1747823568612,-950.44,0.00035342,5]
[361819270,1747823568631,-420.0,0.00035342,5]
[361819271,1747823568651,-708.42,0.00035342,5]
[361819272,1747823568670,-3358.3,0.00035342,5]
[361819273,1747823568688,-420.0,0.00035342,5]
[361819274,1747823568705,-1131.94,0.00035342,5]
[361819275,1747823568723,-3071.77,0.00035342,5]
[361819276,1747823568741,-1890.69,0.00035342,5]
[361819277,1747823568759,-2588.8,0.00035342,5]
[361819278,1747823568779,-1081.97,0.00035342,5]
[361819279,1747823568798,-447.09,0.00035342,5]
[361819280,1747823568816,-1061.79,0.00035342,5]
[361819281,1747823568834,-3165.26,0.00035342,5]
[361819282,1747823568853,-1578.73,0.00035342,5]
[361819283,1747823568872,-420.0,0.00035342,5]
[361819284,1747823568890,-437.54,0.00035342,5]
[361819285,1747823568908,-801.31,0.00035342,5]
[361819286,1747823568927,-420.0,0.00035342,5]
[361819287,1747823568945,-1117.87,0.00035342,5]
[361819288,1747823568965,-590.41,0.00035342,5]
[361819289,1747823568983,-646.24,0.00035342,5]
[361819290,1747823569002,-469.33,0.00035342,5]
[361819291,1747823569022,-1582.05,0.00035342,5]
[361819292,1747823569039,-944.65,0.00035342,5]
[361819293,1747823569056,-1388.27,0.00035342,5]
[361819294,1747823569074,-420.0,0.00035342,5]
[361819295,1747823569092,-420.0,0.00035342,5]
[361819296,1747823569110,-817.62,0.00035342,5]
[361819297,1747823569130,-1313.42,0.00035342,5]
[361819298,1747823569150,-2499.18,0.00035342,5]
[361819299,1747823569168,-2712.821305,0.00035342,5]
[361819300,1747823569187,-420.0,0.00035342,5]
[361819301,1747823569206,-591.99,0.00035342,5]
[361819302,1747823569225,-420.0,0.00035342,5]
[361819303,1747823569242,-2676.06,0.00035342,5]
[361819304,1747823569260,-420.0,0.00035342,5]
[361819305,1747823569279,-420.0,0.00035342,5]
[361819306,1747823569298,-1630.17,0.00035342,5]
[361819307,1747823569314,-2046.62,0.00035342,5]
[361819308,1747823569332,-707.44,0.00035342,5]
[361819309,1747823569351,-420.0,0.00035342,5]
[361819310,1747823569366,-420.0,0.00035342,5]
[361819311,1747823569387,-524.92,0.00035342,5]
[361819312,1747823569405,-844.05,0.00035342,5]
[361819313,1747823569423,-2122.24,0.00035342,5]
[361819314,1747823569440,-603.94,0.00035342,5]
[361819315,1747823569459,-5021.23,0.00035342,5]
[361819316,1747823569477,-1529.49,0.00035342,5]
[361819317,1747823569494,-1250.7,0.00035342,5]
[361819318,1747823569513,-420.0,0.00035342,5]
[361819319,1747823569530,-1386.81,0.00035342,5]
[361819320,1747823569549,-1682.48,0.00035342,5]
[361819321,1747823569567,-730.49,0.00035342,5]
[361819322,1747823569586,-420.0,0.00035342,5]
[361819323,1747823569606,-447.9,0.00035342,5]
[361819324,1747823569623,-1324.88,0.00035342,5]
[361819325,1747823569642,-2229.66,0.00035342,5]
[361819326,1747823569659,-472.1,0.00035342,5]
[361819327,1747823569677,-420.0,0.00035342,5]
[361819328,1747823569695,-434.93,0.00035342,5]
[361819329,1747823569715,-1282.33,0.00035342,5]
[361819330,1747823569734,-464.65500193,0.00035342,5]
[361819331,1747823569753,-444.34,0.00035342,5]
[361819332,1747823569772,-2643.47,0.00035342,5]
[361819333,1747823569791,-191.74868219,0.00035342,5]
[361819334,1747823569809,-1343.09,0.00035342,5]
[361819335,1747823569828,-600.65,0.00035342,5]
[361819336,1747823569846,-1076.93,0.00035342,5]
[361819337,1747823569864,-420.0,0.00035342,5]
[361819338,1747823569883,-1416.84,0.00035342,5]
[361819339,1747823569901,-1332.5,0.00035342,5]
[361819340,1747823569919,-1392.97,0.00035342,5]
[361819341,1747823569938,-682.19,0.00035342,5]
[361819342,1747823569957,-438.34,0.00035342,5]
[361819343,1747823569975,-791.4,0.00035342,5]
[361819344,1747823569994,-1000.0,0.00035342,30]
[361819345,1747823570011,-632.83,0.00035342,5]
[361819346,1747823570029,-420.0,0.00035342,5]
[361819347,1747823570046,-420.0,0.00035342,5]
[361819348,1747823570063,-713.78,0.00035342,5]
[361819349,1747823570082,-2568.63,0.00035342,5]
[361819350,1747823570099,-269.99682415,0.00035342,5]
[361819351,1747823570117,-420.0,0.00035342,5]
[361819352,1747823570136,-1222.57,0.00035342,5]
[361819353,1747823570154,-420.0,0.00035342,5]
[361819354,1747823570171,-338.78410113,0.00035342,5]
[361819355,1747823570187,-1185.11,0.00035342,5]
[361819356,1747823570205,-420.0,0.00035342,5]
[361819357,1747823570221,-3400.95,0.00035342,5]
[361819358,1747823570238,-618.99,0.00035342,5]
[361819359,1747823570254,-559.3,0.00035342,5]
[361819360,1747823570271,-2592.87,0.00035342,5]
[361819361,1747823570288,-729.48,0.00035342,5]
[361819362,1747823570305,-1036.77,0.00035342,5]
[361819363,1747823570322,-912.69,0.00035342,5]
[361819364,1747823570340,-2077.17,0.00035342,5]
[361819365,1747823570359,-474.23,0.00035342,5]
[361819366,1747823570376,-633.02,0.00035342,5]
[361819367,1747823570394,-2143.32,0.00035342,5]
[361819368,1747823570410,-2433.64,0.00035342,5]
[361819369,1747823570427,-2156.45,0.00035342,5]
[361819370,1747823570444,-680.33,0.00035342,5]
[361819371,1747823570461,-1587.63,0.00035342,5]
[361819372,1747823570478,-420.0,0.00035342,5]
[361819373,1747823570494,-3338.68,0.00035342,5]